[Event "ESP-chT 2nd Division 2019"]
[Site "Linares"]
[Date "2019.08.19"]
[Round "1.36"]
[White "Bernabeu Lopez, Carlos Javier"]
[Black "Blanco Diez, David"]
[Result "0-1"]
[ECO "D02"]
[WhiteElo "2370"]
[BlackElo "2103"]
[Annotator "NA"]
[PlyCount "102"]
[EventDate "2019.08.19"]
[EventType "team-tourn"]
[EventCountry "ESP"]
[SourceTitle "playchess.com"]
[Source "ChessBase"]
[SourceQuality "1"]
[TimeControl "5400+30"]

1. d4 {[%emt 0:00:00]} d5 {[%emt 0:00:00]} 2. Nf3 {[%emt 0:00:00]} Nf6 {[%emt 0:00:00]} 3. g3 {[%emt 0:00:00]} e6 {[%emt 0:00:02]} 4. Bg2 {[%emt 0:00:00]} Be7 {[%emt 0:00:15]} 5. O-O {[%emt 0:00:00]} O-O {[%emt 0:00:06]} 6. c4 {[%emt 0:00:01]} dxc4 {[%emt 0:00:33]} 7. Qc2 {[%emt 0:00:39]} a6 {[%emt 0:00:23]} 8. a4 {[%emt 0:00:05]} Bd7 {[%emt 0:00:28]} 9. Qxc4 {[%emt 0:00:07]} Bc6 {[%emt 0:00:06]} 10. Bg5 {[%emt 0:00:56]} Bd5 {[%emt 0:00:29]} 11. Qc2 {[%emt 0:00:08]} Be4 {[%emt 0:00:19]} 12. Qd2 {[%emt 0:09:54]} c5 {[%emt 0:07:43]} 13. dxc5 {[%emt 0:01:00]} Nbd7 {[%emt 0:01:07]} 14. Nc3 {[%emt 0:07:41]} Bc6 {[%emt 0:10:49]} 15. b4 {[%emt 0:11:12]} a5 {[%emt 0:00:19]} 16. b5 {[%emt 0:00:11]} Bxf3 {[%emt 0:00:18]} 17. Bxf3 {[%emt 0:00:05]} Nxc5 {[%emt 0:00:25]} 18. Qe3 {[%emt 0:02:42]} Rc8 {[%emt 0:17:33]} 19. Rfd1 {[%emt 0:08:13]} Qc7 {[%emt 0:04:01]} 20. Rac1 {[%emt 0:03:10]} b6 {[%emt 0:03:54]} 21. Bf4 {[%emt 0:09:33]} Qa7 {[%emt 0:00:33]} 22. g4 {[%emt 0:03:15]} Rfd8 {[%emt 0:04:09]} 23. g5 {[%emt 0:01:07]} Ne8 {[%emt 0:05:37]} 24. Bc6 {[%emt 0:04:29]} Nd6 {[%emt 0:02:45]} 25. Qh3 {[%emt 0:08:09]} Nf5 {[%emt 0:03:56]} 26. Nd5 {[%emt 0:06:30]} Bd6 {[%emt 0:16:10]} 27. Bxd6 {[%emt 0:03:02]} Rxd6 {[%emt 0:05:52]} 28. e4 {[%emt 0:07:12]} Nxe4 {[%emt 0:03:40]} 29. Qg4 {[%emt 0:01:43]} exd5 {[%emt 0:05:10]} 30. Qxf5 {[%emt 0:00:04]} Rcd8 {[%emt 0:00:07]} 31. Rxd5 {[%emt 0:01:56]} Rxd5 {[%emt 0:00:21]} 32. Bxd5 {[%emt 0:00:04]} Nc5 {[%emt 0:00:21]} 33. Re1 {[%emt 0:00:39]} Qc7 {[%emt 0:05:14]} 34. Kh1 {[%emt 0:02:52]} Nxa4 {[%emt 0:01:38]} 35. g6 {[%emt 0:01:44]} hxg6 {[%emt 0:00:19]} 36. Qxg6 {[%emt 0:00:06]} Nc5 {[%emt 0:00:57]} 37. Rg1 {[%emt 0:04:42]} Ne6 {[%emt 0:00:11]} 38. Bxe6 {[%emt 0:00:20]} Qb7+ {[%emt 0:00:53]} 39. Qg2 {[%emt 0:00:03]} Qxg2+ {[%emt 0:00:06]} 40. Kxg2 {[%emt 0:00:16]} fxe6 {[%emt 0:00:05]} 41. Kf3 {[%emt 0:00:24]} Rd4 {[%emt 0:00:31]} 42. Rb1 {[%emt 0:01:06]} Rb4 {[%emt 0:00:35]} 43. Rxb4 {[%emt 0:00:08]} axb4 {[%emt 0:00:06]} 44. Ke4 {[%emt 0:00:01]} e5 {[%emt 0:01:02]} 45. Kd3 {[%emt 0:00:06]} Kf7 {[%emt 0:00:03]} 46. Kc4 {[%emt 0:00:09]} Ke6 {[%emt 0:00:03]} 47. h4 {[%emt 0:00:37]} b3 {[%emt 0:01:00]} 48. Kxb3 {[%emt 0:00:04]} Kd5 {[%emt 0:00:03]} 49. Kb4 {[%emt 0:02:21]} Kd4 {[%emt 0:00:12]} 50. h5 {[%emt 0:00:05]} e4 {[%emt 0:00:40]} 51. Kb3 {[%emt 0:00:05]} Kd5 0-1

[Event "ESP-chT 2nd Division 2019"]
[Site "Linares"]
[Date "2019.08.19"]
[Round "1.37"]
[White "Arauz Alonso, Fernando"]
[Black "Blanco Acevedo, Cristobal Jose"]
[Result "1/2-1/2"]
[ECO "D07"]
[WhiteElo "2109"]
[BlackElo "2342"]
[Annotator "NA"]
[PlyCount "65"]
[EventDate "2019.08.19"]
[EventType "team-tourn"]
[EventCountry "ESP"]
[SourceTitle "playchess.com"]
[Source "ChessBase"]
[SourceQuality "1"]
[TimeControl "5400+30"]

1. d4 {[%emt 0:00:00]} d5 {[%emt 0:00:22]} 2. c4 {[%emt 0:00:24]} Nc6 {[%emt 0:00:11]} 3. cxd5 {[%emt 0:08:01]} Qxd5 {[%emt 0:00:37]} 4. e3 {[%emt 0:00:05]} e5 {[%emt 0:00:45]} 5. Nc3 {[%emt 0:00:30]} Bb4 {[%emt 0:00:05]} 6. a3 {[%emt 0:00:28]} Bxc3+ {[%emt 0:00:49]} 7. bxc3 {[%emt 0:00:03]} exd4 {[%emt 0:00:37]} 8. cxd4 {[%emt 0:03:25]} Nf6 {[%emt 0:00:30]} 9. Nf3 {[%emt 0:07:44]} Ne4 {[%emt 0:00:44]} 10. Qc2 {[%emt 0:13:24]} Bf5 {[%emt 0:01:43]} 11. Bd3 {[%emt 0:05:46]} Qa5+ {[%emt 0:00:47]} 12. Kf1 {[%emt 0:06:10]} Nd6 {[%emt 0:00:18]} 13. Bxf5 Nxf5 {[%emt 0:00:57]} 14. Qe4+ {[%emt 0:17:10]} Nfe7 {[%emt 0:01:54]} 15. Bd2 {[%emt 0:03:23]} Qa6+ {[%emt 0:00:47]} 16. Kg1 {[%emt 0:00:43]} O-O-O {[%emt 0:00:42]} 17. h3 {[%emt 0:02:56]} f5 {[%emt 0:00:49]} 18. Qe6+ {[%emt 0:03:19]} Kb8 {[%emt 0:00:07]} 19. Kh2 {[%emt 0:06:00]} g5 {[%emt 0:06:37]} 20. Rhc1 {[%emt 0:05:56]} g4 {[%emt 0:01:58]} 21. hxg4 {[%emt 0:05:56]} fxg4 {[%emt 0:02:17]} 22. Qxg4 {[%emt 0:00:03]} Rhg8 {[%emt 0:00:33]} 23. Qe4 {[%emt 0:02:21]} Qe2 {[%emt 0:01:54]} 24. Be1 {[%emt 0:03:03]} Rd6 {[%emt 0:04:33]} 25. g3 {[%emt 0:04:12]} Qf1 {[%emt 0:04:10]} 26. Nh4 {[%emt 0:00:58]} Rh6 {[%emt 0:01:04]} 27. Rab1 {[%emt 0:00:13]} Nf5 {[%emt 0:00:50]} 28. Rxc6 {[%emt 0:01:06]} Rxh4+ {[%emt 0:05:52]} 29. gxh4 {[%emt 0:00:10]} Qg1+ {[%emt 0:01:09]} 30. Kh3 {[%emt 0:00:03]} b6 {[%emt 0:02:43]} 31. Re6 {[%emt 0:01:03]} Qf1+ {[%emt 0:01:07]} 32. Kh2 {[%emt 0:00:04]} Qg1+ {[%emt 0:00:12]} 33. Kh3 {[%emt 0:00:08]} 1/2-1/2

[Event "ESP-chT 2nd Division 2019"]
[Site "Linares"]
[Date "2019.08.19"]
[Round "1.38"]
[White "Castilla Leon Salas, Carlos"]
[Black "Fernandez Estremera, Fernando"]
[Result "1-0"]
[ECO "D24"]
[WhiteElo "2252"]
[BlackElo "1944"]
[Annotator "NA"]
[PlyCount "53"]
[EventDate "2019.08.19"]
[EventType "team-tourn"]
[EventCountry "ESP"]
[SourceTitle "playchess.com"]
[Source "ChessBase"]
[SourceQuality "1"]
[TimeControl "5400+30"]

1. d4 {[%emt 0:00:00]} d5 {[%emt 0:00:00]} 2. c4 {[%emt 0:00:51]} dxc4 3. Nf3 {[%emt 0:00:29]} Nf6 {[%emt 0:00:00]} 4. Nc3 {[%emt 0:01:19]} Bg4 {[%emt 0:01:53]} 5. Ne5 {[%emt 0:02:28]} Bh5 {[%emt 0:01:52]} 6. f3 {[%emt 0:02:08]} e6 {[%emt 0:03:27]} 7. g4 {[%emt 0:08:58]} Bg6 {[%emt 0:15:42]} 8. h4 {[%emt 0:00:28]} Be7 {[%emt 0:18:04]} 9. e4 {[%emt 0:10:31]} h6 {[%emt 0:15:35]} 10. Nxg6 {[%emt 0:01:08]} fxg6 {[%emt 0:00:05]} 11. Be3 {[%emt 0:01:06]} Qd7 {[%emt 0:06:05]} 12. Bxc4 {[%emt 0:00:35]} Nc6 {[%emt 0:04:55]} 13. Qd2 {[%emt 0:07:25]} a6 {[%emt 0:07:30]} 14. a3 {[%emt 0:05:52]} Rd8 {[%emt 0:02:07]} 15. O-O-O {[%emt 0:09:29]} Na5 {[%emt 0:01:46]} 16. Ba2 {[%emt 0:00:50]} Nh7 {[%emt 0:04:36]} 17. Ne2 {[%emt 0:02:12]} Qa4 {[%emt 0:01:43]} 18. Qc2 {[%emt 0:04:30]} Qb5 {[%emt 0:01:45]} 19. Bxe6 {[%emt 0:10:11]} Rd6 {[%emt 0:03:01]} 20. Nc3 {[%emt 0:03:19]} Qc6 {[%emt 0:01:25]} 21. Bd5 {[%emt 0:02:28]} Qd7 {[%emt 0:01:11]} 22. Ba2 {[%emt 0:01:07]} b5 {[%emt 0:02:13]} 23. e5 {[%emt 0:00:50]} Rb6 {[%emt 0:00:22]} 24. d5 {[%emt 0:01:25]} Rb8 {[%emt 0:00:33]} 25. e6 {[%emt 0:04:36]} Qd6 {[%emt 0:01:11]} 26. Ne4 {[%emt 0:02:23]} Qe5 {[%emt 0:00:22]} 27. f4 {[%emt 0:00:32]} 1-0

[Event "ESP-chT 2nd Division 2019"]
[Site "Linares"]
[Date "2019.08.19"]
[Round "1.39"]
[White "Andrade Sandoval, Bianca"]
[Black "Ordonez Torres, Maria Del Carmen"]
[Result "1-0"]
[ECO "A45"]
[WhiteElo "1865"]
[BlackElo "2027"]
[Annotator "NA"]
[PlyCount "79"]
[EventDate "2019.08.19"]
[EventType "team-tourn"]
[EventCountry "ESP"]
[SourceTitle "playchess.com"]
[Source "ChessBase"]
[SourceQuality "1"]
[TimeControl "5400+30"]

1. d4 {[%emt 0:00:00]} Nf6 {[%emt 0:00:00]} 2. Bf4 {[%emt 0:00:00]} g6 {[%emt 0:00:00]} 3. e3 {[%emt 0:00:00]} Bg7 {[%emt 0:00:00]} 4. Nf3 {[%emt 0:00:00]} O-O {[%emt 0:00:08]} 5. Be2 {[%emt 0:00:11]} d6 {[%emt 0:00:19]} 6. h3 {[%emt 0:00:21]} Nfd7 {[%emt 0:00:26]} 7. c4 {[%emt 0:00:35]} Nc6 {[%emt 0:00:18]} 8. Nc3 {[%emt 0:00:25]} e5 {[%emt 0:00:15]} 9. Bh2 {[%emt 0:00:50]} f5 {[%emt 0:01:04]} 10. O-O {[%emt 0:04:59]} Kh8 {[%emt 0:02:00]} 11. a3 {[%emt 0:04:18]} g5 {[%emt 0:06:15]} 12. dxe5 {[%emt 0:07:17]} Ndxe5 {[%emt 0:02:03]} 13. Nxe5 {[%emt 0:12:58]} Nxe5 {[%emt 0:00:25]} 14. Rc1 {[%emt 0:04:31]} f4 {[%emt 0:05:16]} 15. Nd5 {[%emt 0:06:22]} f3 {[%emt 0:18:14]} 16. Bxe5 {[%emt 0:00:26]} Bxe5 {[%emt 0:00:02]} 17. Bxf3 {[%emt 0:00:46]} Bxb2 {[%emt 0:03:25]} 18. Rc2 {[%emt 0:02:43]} Be5 {[%emt 0:01:37]} 19. c5 {[%emt 0:01:34]} Bf5 {[%emt 0:04:32]} 20. e4 {[%emt 0:11:22]} Bg6 {[%emt 0:08:47]} 21. cxd6 {[%emt 0:03:32]} Bxd6 {[%emt 0:00:36]} 22. Qd4+ {[%emt 0:06:01]} Kg8 {[%emt 0:00:34]} 23. Rd1 {[%emt 0:03:24]} h5 {[%emt 0:20:17]} 24. Nxc7 {[%emt 0:05:05]} Bxc7 {[%emt 0:08:45]} 25. Qc4+ {[%emt 0:00:08]} Bf7 {[%emt 0:01:44]} 26. Qxc7 {[%emt 0:00:08]} Qf6 {[%emt 0:00:43]} 27. Qxb7 {[%emt 0:04:22]} Rab8 {[%emt 0:00:49]} 28. Qc6 {[%emt 0:00:20]} Qf4 {[%emt 0:00:51]} 29. Qd6 {[%emt 0:07:40]} Bb3 {[%emt 0:02:13]} 30. Qg6+ {[%emt 0:00:48]} Kh8 {[%emt 0:00:02]} 31. Qh6+ {[%emt 0:01:46]} Kg8 {[%emt 0:00:01]} 32. Rc6 {[%emt 0:01:27]} Rb6 {[%emt 0:03:58]} 33. Qg6+ {[%emt 0:04:39]} Kh8 {[%emt 0:00:06]} 34. Qxh5+ {[%emt 0:00:25]} Kg8 35. Rg6+ {[%emt 0:03:52]} Rxg6 {[%emt 0:02:51]} 36. Qxg6+ {[%emt 0:00:05]} Kh8 {[%emt 0:00:02]} 37. Rd7 {[%emt 0:01:23]} Bf7 {[%emt 0:02:27]} 38. Qf5 {[%emt 0:01:16]} Qc1+ {[%emt 0:02:36]} 39. Kh2 {[%emt 0:00:45]} Kg8 {[%emt 0:02:46]} 40. Bh5 {[%emt 0:01:21]} 1-0

[Event "ESP-chT 2nd Division 2019"]
[Site "Linares"]
[Date "2019.08.19"]
[Round "1.40"]
[White "Jimenez De La Torre, Jose A."]
[Black "Centeno Mendoza, Julio Stefano"]
[Result "1-0"]
[ECO "C50"]
[WhiteElo "1978"]
[BlackElo "1726"]
[Annotator "NA"]
[PlyCount "55"]
[EventDate "2019.08.19"]
[EventType "team-tourn"]
[EventCountry "ESP"]
[SourceTitle "playchess.com"]
[Source "ChessBase"]
[SourceQuality "1"]
[TimeControl "5400+30"]

1. e4 {[%emt 0:00:00]} e5 {[%emt 0:00:00]} 2. Bc4 {[%emt 0:00:00]} Bc5 {[%emt 0:00:11]} 3. d4 {[%emt 0:01:46]} Bxd4 {[%emt 0:01:08]} 4. Nf3 {[%emt 0:00:11]} Nc6 {[%emt 0:01:08]} 5. O-O {[%emt 0:00:17]} Nf6 {[%emt 0:01:11]} 6. Nxd4 {[%emt 0:00:27]} Nxd4 {[%emt 0:00:10]} 7. Bg5 {[%emt 0:00:31]} h6 {[%emt 0:01:50]} 8. Bh4 {[%emt 0:00:28]} g5 {[%emt 0:01:36]} 9. f4 {[%emt 0:00:24]} gxf4 {[%emt 0:02:34]} 10. Rxf4 {[%emt 0:00:21]} Ne2+ {[%emt 0:02:04]} 11. Qxe2 {[%emt 0:04:49]} exf4 {[%emt 0:00:13]} 12. e5 {[%emt 0:00:04]} Qe7 {[%emt 0:00:55]} 13. Nc3 {[%emt 0:05:40]} Rg8 {[%emt 0:03:47]} 14. Ne4 {[%emt 0:03:10]} Kf8 {[%emt 0:01:46]} 15. Bxf6 {[%emt 0:04:54]} Qb4 {[%emt 0:00:15]} 16. Rf1 {[%emt 0:01:37]} b5 {[%emt 0:01:59]} 17. Bd3 {[%emt 0:08:10]} Bb7 {[%emt 0:07:58]} 18. c3 {[%emt 0:03:29]} Qa5 {[%emt 0:01:15]} 19. Rxf4 {[%emt 0:01:50]} Re8 {[%emt 0:02:01]} 20. Rg4 {[%emt 0:07:54]} Bxe4 {[%emt 0:03:06]} 21. Rxg8+ {[%emt 0:02:12]} Kxg8 {[%emt 0:00:08]} 22. Bxe4 {[%emt 0:00:19]} Qb6+ {[%emt 0:01:04]} 23. Kf1 {[%emt 0:00:18]} Qe6 {[%emt 0:00:18]} 24. Qf3 {[%emt 0:01:12]} Qc4+ {[%emt 0:00:39]} 25. Bd3 {[%emt 0:00:14]} Qh4 {[%emt 0:06:06]} 26. Bxh4 {[%emt 0:00:30]} Rxe5 {[%emt 0:00:10]} 27. Bf6 {[%emt 0:00:44]} Rg5 {[%emt 0:00:25]} 28. Qa8# {[%emt 0:00:13]} 1-0

[Event "ESP-chT 2nd Division 2019"]
[Site "Linares"]
[Date "2019.08.20"]
[Round "2.2"]
[White "Moreno Ibanez, Miguel"]
[Black "Del Rio De Angelis, Salvador G."]
[Result "1/2-1/2"]
[ECO "B42"]
[WhiteElo "2272"]
[BlackElo "2472"]
[Annotator "ChessBase"]
[PlyCount "105"]
[EventDate "2019.08.19"]
[EventType "team-tourn"]
[EventCountry "ESP"]
[SourceTitle "playchess.com"]
[Source "ChessBase"]
[SourceQuality "1"]
[TimeControl "5400+30"]

1. e4 {[%emt 0:00:36]} c5 {[%emt 0:00:00]} 2. Nf3 {[%emt 0:00:18]} e6 {[%emt 0:00:00]} 3. d4 {[%emt 0:02:46]} cxd4 {[%emt 0:00:00]} 4. Nxd4 {[%emt 0:00:03]} a6 {[%emt 0:00:07]} 5. Bd3 {[%emt 0:00:14]} g6 {[%emt 0:00:13]} 6. O-O {[%emt 0:06:34]} Bg7 {[%emt 0:00:18]} 7. c3 {[%emt 0:04:34]} d6 {[%emt 0:03:10]} 8. f4 {[%emt 0:07:40]} Nf6 {[%emt 0:02:45]} 9. Kh1 {[%emt 0:08:06]} O-O {[%emt 0:01:59]} 10. Bc2 {[%emt 0:07:54]} b6 {[%emt 0:06:30]} 11. Qe2 {[%emt 0:02:49]} Bb7 {[%emt 0:00:43]} 12. Nd2 {[%emt 0:03:46]} Qc7 {[%emt 0:09:50]} 13. e5 {[%emt 0:16:26]} dxe5 {[%emt 0:04:10]} 14. fxe5 {[%emt 0:00:08]} Nfd7 {[%emt 0:00:19]} 15. N2f3 {[%emt 0:00:41]} Nxe5 {[%emt 0:05:58]} 16. Bf4 {[%emt 0:04:43]} Nbd7 {[%emt 0:07:27]} 17. Rae1 {[%emt 0:08:42]} Bxf3 {[%emt 0:00:14]} 18. Nxf3 {[%emt 0:01:33]} f6 {[%emt 0:00:14]} 19. Nd4 {[%emt 0:08:40]} Rfe8 {[%emt 0:04:53]} 20. Be4 {[%emt 0:01:00]} Rac8 {[%emt 0:05:18]} 21. Qxa6 {[%emt 0:01:32]} Qc5 {[%emt 0:04:02]} 22. Qb5 {[%emt 0:06:50]} Qxb5 {[%emt 0:08:58]} 23. Nxb5 {[%emt 0:00:02]} Re7 {[%emt 0:00:34]} 24. Rd1 {[%emt 0:02:13]} g5 {[%emt 0:01:12]} 25. Nd6 {[%emt 0:01:07]} Rc7 {[%emt 0:01:25]} 26. Be3 {[%emt 0:01:12]} h6 {[%emt 0:04:07]} 27. Bc2 {[%emt 0:00:49]} f5 {[%emt 0:00:38]} 28. Bb3 {[%emt 0:01:17]} Kh7 {[%emt 0:00:20]} 29. h3 {[%emt 0:00:29]} g4 {[%emt 0:05:31]} 30. Nb5 {[%emt 0:00:33]} Rc8 {[%emt 0:00:31]} 31. Rd6 {[%emt 0:01:09]} Nc4 {[%emt 0:02:15]} 32. Bxc4 {[%emt 0:00:09]} Rxc4 {[%emt 0:00:06]} 33. Nd4 {[%emt 0:01:21]} gxh3 {[%emt 0:12:46]} 34. gxh3 {[%emt 0:00:12]} Nf6 {[%emt 0:02:07]} 35. Rg1 {[%emt 0:00:49]} Nd5 {[%emt 0:01:12]} 36. Bf2 {[%emt 0:00:30]} Nf4 {[%emt 0:01:20]} 37. Rg3 {[%emt 0:00:24]} Be5 {[%emt 0:01:46]} 38. Rd8 {[%emt 0:00:22]} Nh5 {[%emt 0:03:33]} 39. Rgg8 {[%emt 0:00:40]} Ng7 {[%emt 0:02:04]} 40. Nf3 {[%emt 0:00:25]} Bc7 {[%emt 0:00:41]} 41. Rc8 {[%emt 0:00:09]} b5 {[%emt 0:00:19]} 42. Be3 {[%emt 0:00:37]} f4 {[%emt 0:00:40]} 43. Nh4 {[%emt 0:00:14]} Ne8 {[%emt 0:00:32]} 44. Rgxe8 {[%emt 0:01:08]} Rxe8 {[%emt 0:00:07]} 45. Rxe8 {[%emt 0:00:06]} fxe3 {[%emt 0:00:04]} 46. Re7+ {[%emt 0:00:09]} Kg8 {[%emt 0:00:13]} 47. Ng2 {[%emt 0:00:37]} b4 {[%emt 0:01:24]} 48. Rxe6 {[%emt 0:01:10]} bxc3 {[%emt 0:00:17]} 49. bxc3 {[%emt 0:00:12]} Rxc3 {[%emt 0:00:07]} 50. Nxe3 {[%emt 0:00:37]} Bf4 {[%emt 0:01:17]} 51. Nf5 {[%emt 0:00:38]} Rxh3+ {[%emt 0:00:18]} 52. Kg2 {[%emt 0:00:05]} Ra3 {[%emt 0:00:08]} 53. Nxh6+ {[%emt 0:00:21]} 1/2-1/2

[Event "ESP-chT 2nd Division 2019"]
[Site "Linares"]
[Date "2019.08.20"]
[Round "2.3"]
[White "Iruzubieta Villaluenga, Jesus M"]
[Black "Perez Gonzalez, Jose Manuel"]
[Result "1-0"]
[ECO "B07"]
[WhiteElo "2438"]
[BlackElo "2218"]
[Annotator "ChessBase"]
[PlyCount "87"]
[EventDate "2019.08.19"]
[EventType "team-tourn"]
[EventCountry "ESP"]
[SourceTitle "playchess.com"]
[Source "ChessBase"]
[SourceQuality "1"]
[TimeControl "5400+30"]

1. e4 {[%emt 0:00:00]} d6 {[%emt 0:00:00]} 2. d4 {[%emt 0:00:01]} Nf6 {[%emt 0:00:00]} 3. Nc3 {[%emt 0:00:04]} g6 {[%emt 0:00:00]} 4. Bg5 {[%emt 0:00:43]} c6 {[%emt 0:00:04]} 5. Qd2 {[%emt 0:00:17]} Nbd7 {[%emt 0:00:38]} 6. f4 {[%emt 0:00:39]} d5 {[%emt 0:00:21]} 7. e5 {[%emt 0:00:17]} Ne4 {[%emt 0:00:09]} 8. Nxe4 {[%emt 0:00:10]} dxe4 {[%emt 0:00:04]} 9. Ne2 {[%emt 0:00:18]} f6 {[%emt 0:02:35]} 10. Bh4 {[%emt 0:00:06]} Bh6 {[%emt 0:02:58]} 11. Nc3 {[%emt 0:04:07]} fxe5 {[%emt 0:01:57]} 12. dxe5 {[%emt 0:00:26]} e3 {[%emt 0:00:20]} 13. Qxe3 {[%emt 0:05:47]} Qb6 {[%emt 0:00:07]} 14. Qxb6 {[%emt 0:03:38]} axb6 {[%emt 0:00:07]} 15. g3 {[%emt 0:32:30]} Nxe5 {[%emt 0:00:12]} 16. Be2 {[%emt 0:00:10]} Ng4 {[%emt 0:24:03]} 17. Kd2 {[%emt 0:14:01]} Bf5 {[%emt 0:01:55]} 18. Rae1 {[%emt 0:00:53]} O-O-O+ {[%emt 0:04:02]} 19. Kc1 {[%emt 0:00:04]} Nf6 {[%emt 0:04:53]} 20. Bc4 {[%emt 0:01:47]} Rd7 {[%emt 0:01:51]} 21. Be6 {[%emt 0:01:18]} Bxe6 {[%emt 0:00:09]} 22. Rxe6 {[%emt 0:00:07]} Rf8 {[%emt 0:00:35]} 23. Rhe1 {[%emt 0:01:06]} Rf7 {[%emt 0:00:15]} 24. Bxf6 {[%emt 0:01:02]} exf6 {[%emt 0:02:49]} 25. Ne4 {[%emt 0:00:45]} Rfe7 {[%emt 0:04:54]} 26. Nxf6 {[%emt 0:01:57]} Rxe6 {[%emt 0:00:08]} 27. Rxe6 {[%emt 0:00:07]} Rf7 {[%emt 0:00:08]} 28. h4 {[%emt 0:03:06]} Bf8 {[%emt 0:00:46]} 29. Nxh7 {[%emt 0:00:43]} Rxh7 {[%emt 0:01:50]} 30. Re8+ {[%emt 0:00:08]} Kd7 {[%emt 0:00:04]} 31. Rxf8 {[%emt 0:00:04]} Ke7 {[%emt 0:00:08]} 32. Rb8 {[%emt 0:03:29]} Kf6 {[%emt 0:00:09]} 33. Re8 {[%emt 0:00:04]} Rd7 {[%emt 0:02:48]} 34. a4 {[%emt 0:02:29]} Rd5 {[%emt 0:00:58]} 35. Re5 {[%emt 0:01:24]} Rd4 {[%emt 0:06:00]} 36. b3 {[%emt 0:00:35]} c5 {[%emt 0:00:20]} 37. h5 {[%emt 0:02:56]} gxh5 {[%emt 0:00:19]} 38. Rxh5 {[%emt 0:00:11]} Kg6 {[%emt 0:00:28]} 39. Rh8 {[%emt 0:01:23]} c4 {[%emt 0:01:15]} 40. Rb8 {[%emt 0:00:12]} cxb3 {[%emt 0:00:12]} 41. cxb3 {[%emt 0:00:09]} Rd7 {[%emt 0:00:56]} 42. Kc2 {[%emt 0:01:26]} Kf5 {[%emt 0:00:22]} 43. Kc3 {[%emt 0:00:28]} Rg7 {[%emt 0:00:18]} 44. Kb4 {[%emt 0:01:12]} 1-0

[Event "ESP-chT 2nd Division 2019"]
[Site "Linares"]
[Date "2019.08.20"]
[Round "2.4"]
[White "Barraza Caracuel, Ignacio"]
[Black "Trigo Urquijo, Sergio"]
[Result "1/2-1/2"]
[ECO "C41"]
[WhiteElo "2118"]
[BlackElo "2385"]
[Annotator "ChessBase"]
[PlyCount "103"]
[EventDate "2019.08.19"]
[EventType "team-tourn"]
[EventCountry "ESP"]
[SourceTitle "playchess.com"]
[Source "ChessBase"]
[SourceQuality "1"]
[TimeControl "5400+30"]

1. d4 {[%emt 0:00:00]} d6 {[%emt 0:00:18]} 2. e4 {[%emt 0:00:33]} Nf6 {[%emt 0:00:30]} 3. Nc3 {[%emt 0:01:23]} e5 {[%emt 0:00:10]} 4. Nf3 {[%emt 0:01:03]} Nbd7 {[%emt 0:00:36]} 5. Bc4 {[%emt 0:03:24]} Be7 {[%emt 0:00:27]} 6. O-O {[%emt 0:02:24]} c6 {[%emt 0:02:09]} 7. a4 {[%emt 0:02:48]} h6 {[%emt 0:02:00]} 8. Qe2 Qc7 {[%emt 0:03:59]} 9. h3 {[%emt 0:25:04]} Nf8 {[%emt 0:04:09]} 10. dxe5 {[%emt 0:02:38]} dxe5 {[%emt 0:00:13]} 11. Nh4 {[%emt 0:01:41]} Ne6 {[%emt 0:14:09]} 12. Nf5 {[%emt 0:02:15]} Bf8 {[%emt 0:03:10]} 13. f4 {[%emt 0:16:18]} g6 {[%emt 0:10:34]} 14. fxe5 {[%emt 0:09:10]} Qxe5 {[%emt 0:01:27]} 15. Bxe6 {[%emt 0:09:41]} Qxe6 {[%emt 0:04:55]} 16. Nd4 {[%emt 0:02:28]} Qe5 {[%emt 0:07:03]} 17. Nf3 {[%emt 0:02:36]} Bc5+ {[%emt 0:06:41]} 18. Be3 {[%emt 0:01:23]} Qe7 {[%emt 0:01:05]} 19. e5 {[%emt 0:01:58]} Bf5 {[%emt 0:16:37]} 20. g4 {[%emt 0:06:30]} Bd7 {[%emt 0:02:16]} 21. Rae1 {[%emt 0:00:44]} Nd5 {[%emt 0:00:50]} 22. Nxd5 {[%emt 0:00:36]} cxd5 {[%emt 0:00:11]} 23. Qf2 {[%emt 0:00:44]} Bxe3 {[%emt 0:01:53]} 24. Qxe3 {[%emt 0:00:05]} Rc8 {[%emt 0:05:09]} 25. Nd4 {[%emt 0:00:59]} h5 {[%emt 0:01:37]} 26. g5 {[%emt 0:01:32]} O-O {[%emt 0:04:17]} 27. Rf6 {[%emt 0:00:07]} Kh7 {[%emt 0:00:33]} 28. Qd3 {[%emt 0:01:47]} Rg8 {[%emt 0:02:30]} 29. c3 {[%emt 0:00:34]} Be6 {[%emt 0:00:39]} 30. Nxe6 {[%emt 0:00:51]} fxe6 {[%emt 0:00:06]} 31. Ref1 {[%emt 0:00:29]} Rc7 {[%emt 0:00:24]} 32. R1f4 {[%emt 0:02:18]} Qe8 {[%emt 0:00:40]} 33. Qf3 {[%emt 0:00:28]} Kg7 {[%emt 0:00:22]} 34. h4 {[%emt 0:00:21]} Re7 {[%emt 0:00:40]} 35. Qe3 {[%emt 0:01:03]} b6 {[%emt 0:00:21]} 36. Qd3 {[%emt 0:00:08]} Rc7 {[%emt 0:00:45]} 37. Qh3 {[%emt 0:00:39]} Re7 {[%emt 0:00:14]} 38. Qd3 {[%emt 0:00:28]} Rc7 {[%emt 0:00:07]} 39. Kg2 {[%emt 0:00:50]} Kh7 {[%emt 0:01:10]} 40. Kf2 {[%emt 0:00:43]} Kg7 {[%emt 0:00:49]} 41. Ke2 {[%emt 0:00:26]} Kh7 {[%emt 0:00:13]} 42. Kd2 {[%emt 0:00:25]} Kg7 {[%emt 0:00:30]} 43. Kc1 {[%emt 0:00:18]} Kh7 {[%emt 0:00:05]} 44. Kb1 {[%emt 0:00:06]} Kg7 {[%emt 0:00:04]} 45. Qc2 {[%emt 0:01:51]} Kh7 {[%emt 0:00:09]} 46. Qd3 {[%emt 0:00:01]} Kg7 {[%emt 0:00:12]} 47. Qc2 {[%emt 0:00:40]} Kh7 {[%emt 0:00:04]} 48. Qd3 {[%emt 0:00:06]} Kg7 {[%emt 0:00:38]} 49. Qh3 {[%emt 0:00:16]} Re7 {[%emt 0:00:07]} 50. Qf3 {[%emt 0:00:32]} Rc7 {[%emt 0:00:26]} 51. Qh3 {[%emt 0:00:38]} Re7 {[%emt 0:00:04]} 52. Qd3 1/2-1/2